fUST/lending_fUST_20250921
["ID","MTS","AMOUNT","RATE_DAILY","PERIOD"]
[386638217,1758447057790,-480.0,0.00021095,2]
[386638219,1758447057800,-480.0,0.00021095,2]
[386638221,1758447057809,-1155.69,0.00021095,2]
[386638223,1758447057819,-10857.65,0.00021095,2]
[386638225,1758447057829,-480.0,0.00021095,2]
[386638227,1758447057839,-480.0,0.00021095,2]
[386638229,1758447057848,-1690.43,0.00021095,2]
[386638231,1758447057858,-678.23,0.00021095,2]
[386638233,1758447057867,-480.0,0.00021095,2]
[386638235,1758447057877,-480.0,0.00021095,2]
[386638237,1758447057888,-572.58388793,0.00021095,2]
[386638239,1758447057898,-1659.82,0.00021095,2]
[386638241,1758447057907,-970.19,0.00021095,2]
[386638243,1758447057916,-180.52289267,0.00021095,2]
[386638245,1758447057926,-480.0,0.00021095,2]
[386638247,1758447057934,-557.14,0.00021095,2]
[386638249,1758447057944,-480.0,0.00021095,2]
[386638250,1758447057954,-480.0,0.00021095,2]
[386638252,1758447057964,-480.0,0.00021095,2]
[386638255,1758447057973,-186.82874435,0.00021095,2]
[386638257,1758447057984,-480.0,0.00021095,2]
[386638259,1758447057994,-480.0,0.00021095,2]
[386638260,1758447058008,-845.37,0.00021095,2]
[386638263,1758447058018,-847.21,0.00021095,2]
[386638264,1758447058027,-3912.14,0.00021095,2]
[386638266,1758447058037,-480.0,0.00021095,2]
[386638268,1758447058045,-480.0,0.00021095,2]
[386638270,1758447058053,-730.9,0.00021095,2]
[386638272,1758447058063,-480.0,0.00021095,2]
[386638274,1758447058072,-480.0,0.00021095,2]
[386638276,1758447058082,-675.21,0.00021095,2]
[386638278,1758447058092,-583.98348702,0.00021095,2]
[386638280,1758447058102,-480.0,0.00021095,2]
[386638282,1758447058112,-592.13615264,0.00021095,2]
[386638284,1758447058122,-480.0,0.00021095,2]
[386638286,1758447058131,-234.46817036,0.00021095,2]
[386638288,1758447058140,-1536.62,0.00021095,2]
[386638290,1758447058150,-480.0,0.00021095,2]
[386638292,1758447058159,-1727.94,0.00021095,2]
[386638294,1758447058170,-480.0,0.00021095,2]
[386638296,1758447058179,-850.04,0.00021095,2]
[386638298,1758447058189,-480.0,0.00021095,2]
[386638300,1758447058199,-480.0,0.00021095,2]
[386638302,1758447058210,-487.52,0.00021095,2]
[386638304,1758447058220,-500.0,0.00021096,2]
[386638306,1758447058229,-500.0,0.00021096,2]
[386638308,1758447058239,-471.5733539,0.00021116,2]
[386638310,1758447058248,-551.07059046,0.00021116,2]
[386638312,1758447058258,-2000.0,0.00021116,2]
[386638314,1758447058268,-1515.20291988,0.00021116,2]
[386638316,1758447058278,-2000.0,0.00021116,2]
[386638318,1758447058288,-227.0,0.00021118,2]
[386638320,1758447058297,-260.0,0.00021137,2]
[386638322,1758447058307,-335.0,0.00021151,4]
[386638324,1758447058316,-609.15,0.00021199,2]
[386638326,1758447058326,-480.0,0.00021199,2]
[386638328,1758447058336,-227.0,0.00021237,2]
[386638330,1758447058345,-480.0,0.00021242,2]
[386638332,1758447058355,-815.5,0.00021242,2]
[386638334,1758447058364,-11523.22,0.00021244,2]
[386638336,1758447058374,-1500.0,0.00021364,2]
[386638338,1758447058384,-2500.0,0.00021364,2]
[386638340,1758447058395,-480.0,0.00021369,2]
[386638342,1758447058404,-480.0,0.00021369,2]
[386638345,1758447058414,-480.0,0.00021369,2]
[386638347,1758447058423,-480.0,0.00021369,2]
[386638348,1758447058433,-517.49111857,0.00021369,2]
[386638350,1758447058442,-480.0,0.00021369,2]
[386638353,1758447058452,-480.0,0.00021369,2]
[386638354,1758447058463,-480.0,0.00021369,2]
[386638356,1758447058475,-480.0,0.00021369,2]
[386638358,1758447058484,-388.93709765,0.00021369,2]
[386638360,1758447058493,-480.0,0.00021369,2]
[386638362,1758447058503,-480.0,0.00021369,2]
[386638364,1758447058513,-480.0,0.00021369,2]
[386638367,1758447058523,-480.0,0.00021369,2]
[386638368,1758447058532,-480.0,0.00021369,2]
[386638370,1758447058541,-1155.69,0.00021369,2]
[386638372,1758447058551,-10857.65,0.00021369,2]
[386638374,1758447058560,-492.57521216,0.00021369,2]
[386638376,1758447058570,-480.0,0.00021369,2]
[386638378,1758447058579,-1690.43,0.00021369,2]
[386638380,1758447058588,-678.23,0.00021369,2]
[386638382,1758447058598,-480.0,0.00021369,2]
[386638384,1758447058607,-480.0,0.00021369,2]
[386638386,1758447058617,-1659.82,0.00021369,2]
[386638388,1758447058626,-970.19,0.00021369,2]
[386638390,1758447058636,-501.17895162,0.00021369,2]
[386638392,1758447058645,-557.14,0.00021369,2]
[386638394,1758447058655,-480.0,0.00021369,2]
[386638396,1758447058664,-466.73420388,0.00021369,2]
[386638398,1758447058673,-480.0,0.00021369,2]
[386638400,1758447058683,-480.0,0.00021369,2]
[386638402,1758447058692,-492.95688744,0.00021369,2]
[386638404,1758447058702,-845.37,0.00021369,2]
[386638406,1758447058714,-847.21,0.00021369,2]
[386638408,1758447058724,-491.6859979,0.00021369,2]
[386638410,1758447058733,-3912.14,0.00021369,2]
[386638412,1758447058742,-480.0,0.00021369,2]
[386638421,1758447058814,-730.9,0.00021369,2]
[386638423,1758447058824,-448.40833389,0.00021369,2]
[386638425,1758447058833,-480.0,0.00021369,2]
[386638427,1758447058843,-675.21,0.00021369,2]
[386638429,1758447058853,-480.0,0.00021369,2]
[386638431,1758447058862,-1536.62,0.00021369,2]
[386638433,1758447058872,-480.0,0.00021369,2]
[386638435,1758447058882,-1727.94,0.00021369,2]
[386638437,1758447058893,-480.0,0.00021369,2]
[386638439,1758447058904,-850.04,0.00021369,2]
[386638441,1758447058914,-480.0,0.00021369,2]
[386638443,1758447058923,-480.0,0.00021369,2]
[386638445,1758447058932,-487.52,0.00021369,2]
[386638447,1758447058942,-477.16,0.0002137,2]
[386638449,1758447058952,-500.0,0.0002137,2]
[386638451,1758447058963,-5000.0,0.00021372,2]
[386638453,1758447058972,-504.8841743,0.00021373,2]
[386638455,1758447058982,-1255.48350909,0.00021373,2]
[386638457,1758447058992,-1500.0,0.00021373,2]
[386638459,1758447059005,-1500.0,0.00021373,2]
[386638461,1758447059015,-1200.83885379,0.00021373,2]
[386638463,1758447059024,-1525.82421191,0.00021409,2]
[386638465,1758447059034,-501.9254512,0.00021409,2]
[386638467,1758447059044,-4000.0,0.00021429,4]
[386638469,1758447059053,-609.15,0.00021473,2]
[386638471,1758447059063,-480.0,0.00021473,2]
[386638472,1758447059073,-500.0,0.000215,2]
[386638474,1758447059084,-500.0,0.000215,2]
[386638476,1758447059094,-500.0,0.000215,2]
[386638478,1758447059103,-500.0,0.000215,2]
[386638480,1758447059113,-500.0,0.000215,2]
[386638482,1758447059123,-500.0,0.000215,2]
[386638484,1758447059132,-505.30613447,0.000215,2]
[386638486,1758447059141,-500.0,0.000215,2]
[386638488,1758447059151,-500.0,0.000215,2]
[386638490,1758447059161,-501.05618495,0.000215,2]
[386638492,1758447059171,-500.0,0.000215,2]
[386638494,1758447059182,-500.0,0.000215,2]
[386638496,1758447059192,-500.0,0.000215,2]
[386638498,1758447059202,-500.0,0.000215,2]
[386638500,1758447059214,-500.0,0.000215,2]
[386638502,1758447059224,-500.0,0.000215,2]
[386638504,1758447059234,-500.0,0.000215,2]
[386638506,1758447059243,-500.0,0.000215,2]
[386638508,1758447059253,-500.0,0.000215,2]
[386638510,1758447059265,-480.0,0.00021516,2]
[386638512,1758447059274,-815.5,0.00021516,2]
[386638514,1758447059283,-198.807937,0.00021558,2]
[386638516,1758447059294,-407.2827298,0.00021616,2]
[386638518,1758447059303,-504.6279559,0.00021636,2]
[386638520,1758447059312,-1500.0,0.00021636,2]
[386638522,1758447059322,-480.0,0.00021643,2]
[386638524,1758447059332,-480.0,0.00021643,2]
[386638526,1758447059341,-480.0,0.00021643,2]
[386638528,1758447059350,-480.0,0.00021643,2]
[386638531,1758447059361,-480.0,0.00021643,2]
[386638533,1758447059370,-480.0,0.00021643,2]
[386638535,1758447059380,-480.0,0.00021643,2]
[386638537,1758447059390,-258.45,0.00021643,2]
[386638539,1758447059399,-297.64148973,0.00021643,2]
[386638541,1758447059411,-480.0,0.00021643,2]
[386638543,1758447059421,-356.20244263,0.00021643,2]
[386638545,1758447059430,-480.0,0.00021643,2]
[386638547,1758447059439,-480.0,0.00021643,2]
[386638549,1758447059449,-1155.69,0.00021643,2]
[386638551,1758447059459,-10857.65,0.00021643,2]
[386638553,1758447059469,-480.0,0.00021643,2]
[386638556,1758447059488,-1690.43,0.00021643,2]
[386638558,1758447059499,-678.23,0.00021643,2]
[386638561,1758447059510,-480.0,0.00021643,2]
[386638563,1758447059519,-480.0,0.00021643,2]
[386638565,1758447059529,-1659.82,0.00021643,2]
[386638567,1758447059539,-970.19,0.00021643,2]
[386638569,1758447059549,-557.14,0.00021643,2]
[386638571,1758447059559,-480.0,0.00021643,2]
[386638573,1758447059570,-480.0,0.00021643,2]
[386638575,1758447059580,-845.37,0.00021643,2]
[386638577,1758447059590,-847.21,0.00021643,2]
[386638579,1758447059600,-3912.14,0.00021643,2]
[386638581,1758447059610,-480.0,0.00021643,2]
[386638584,1758447059620,-730.9,0.00021643,2]
[386638585,1758447059630,-480.0,0.00021643,2]
[386638586,1758447059640,-675.21,0.00021643,2]
[386638587,1758447059650,-480.0,0.00021643,2]
[386638588,1758447059659,-1536.62,0.00021643,2]
[386638589,1758447059669,-1727.94,0.00021643,2]
[386638590,1758447059681,-480.0,0.00021643,2]
[386638591,1758447059692,-480.0,0.00021643,2]
[386638592,1758447059702,-850.04,0.00021643,2]
[386638593,1758447059712,-480.0,0.00021643,2]
[386638595,1758447059722,-480.0,0.00021643,2]
[386638597,1758447059732,-487.52,0.00021643,2]
[386638599,1758447059742,-500.0,0.00021644,2]
[386638601,1758447059752,-2500.0,0.00021664,2]
[386638603,1758447059762,-360.0,0.00021685,2]
[386638605,1758447059772,-609.15,0.00021747,2]
[386638607,1758447059781,-480.0,0.00021747,2]
[386638609,1758447059790,-480.0,0.0002179,2]
[386638611,1758447059803,-815.5,0.0002179,2]
[386638613,1758447059813,-1400.0,0.00021808,2]
[386638615,1758447059822,-164.98963149,0.0002189,2]
[386638617,1758447059832,-160.0,0.00021904,4]
[386638620,1758447059843,-3000.0,0.00021912,2]
[386638622,1758447059853,-200.0,0.00021917,2]
[386638624,1758447059863,-252.17080021,0.00021917,2]
[386638626,1758447059872,-480.0,0.00021917,2]
[386638628,1758447059882,-480.0,0.00021917,2]
[386638630,1758447059891,-525.41610051,0.00021917,2]
[386638632,1758447059900,-480.0,0.00021917,2]
[386638634,1758447059910,-480.0,0.00021917,2]
[386638636,1758447059920,-500.0,0.00021917,2]
[386638638,1758447059930,-500.0,0.00021917,2]
[386638648,1758447059939,-500.0,0.00021917,2]
[386638651,1758447060039,-500.0,0.00021917,2]
[386638653,1758447060048,-480.0,0.00021917,2]
[386638655,1758447060058,-480.0,0.00021917,2]
[386638657,1758447060068,-480.0,0.00021917,2]
[386638659,1758447060077,-480.0,0.00021917,2]
[386638661,1758447060087,-480.0,0.00021917,2]
[386638663,1758447060097,-480.0,0.00021917,2]
[386638665,1758447060107,-480.0,0.00021917,2]
[386638667,1758447060116,-480.0,0.00021917,2]
[386638669,1758447060125,-480.0,0.00021917,2]
[386638671,1758447060134,-480.0,0.00021917,2]
[386638673,1758447060144,-490.48910028,0.00021917,2]
[386638675,1758447060154,-480.0,0.00021917,2]
[386638677,1758447060164,-480.0,0.00021917,2]
[386638679,1758447060173,-480.0,0.00021917,2]
[386638681,1758447060183,-509.80161875,0.00021917,2]
[386638684,1758447060194,-1155.69,0.00021917,2]
[386638686,1758447060203,-10857.65,0.00021917,2]
[386638688,1758447060215,-480.0,0.00021917,2]
[386638689,1758447060225,-1690.43,0.00021917,2]
[386638691,1758447060235,-678.23,0.00021917,2]
[386638693,1758447060245,-480.0,0.00021917,2]
[386638695,1758447060255,-469.06406491,0.00021917,2]
[386638697,1758447060265,-1659.82,0.00021917,2]
[386638700,1758447060275,-970.19,0.00021917,2]
[386638702,1758447060286,-557.14,0.00021917,2]
[386638704,1758447060296,-480.0,0.00021917,2]
[386638706,1758447060306,-480.0,0.00021917,2]
[386638708,1758447060316,-845.37,0.00021917,2]
[386638710,1758447060326,-847.21,0.00021917,2]
[386638712,1758447060335,-3912.14,0.00021917,2]
[386638714,1758447060345,-480.0,0.00021917,2]
[386638716,1758447060355,-730.9,0.00021917,2]
[386638718,1758447060365,-480.0,0.00021917,2]
[386638720,1758447060374,-675.21,0.00021917,2]
[386638722,1758447060384,-480.0,0.00021917,2]
[386638724,1758447060393,-1536.62,0.00021917,2]
[386638726,1758447060403,-1727.94,0.00021917,2]
[386638728,1758447060412,-480.0,0.00021917,2]
[386638730,1758447060421,-480.0,0.00021917,2]
[386638732,1758447060431,-480.0,0.00021917,2]
[386638734,1758447060441,-850.04,0.00021917,2]
[386638736,1758447060451,-480.0,0.00021917,2]
[386638738,1758447060461,-487.52,0.00021917,2]
[386638740,1758447060471,-207.64724165,0.00021918,2]
[386638742,1758447060480,-175.939137,0.00021918,2]
[386638744,1758447060489,-152.92581206,0.00021918,2]
[386638746,1758447060499,-151.0,0.00021918,2]
[386638748,1758447060508,-151.0,0.00021918,2]
[386638750,1758447060518,-2000.0,0.00021921,2]
[386638752,1758447060527,-503.13623075,0.00021921,2]
[386638754,1758447060537,-199.99012184,0.00022,3]
[386638756,1758447060547,-669.16,0.00022,2]
[386638758,1758447060556,-609.15,0.00022021,2]
[386638760,1758447060566,-480.0,0.00022021,2]
[386638762,1758447060575,-12492.53205295,0.00022044,2]
[386638764,1758447060585,-500.0,0.00022048,2]
[386638766,1758447060594,-1000.0,0.00022048,2]
[386638768,1758447060604,-1000.0,0.00022048,2]
[386638770,1758447060614,-268.3084446,0.00022048,2]
[386638772,1758447060623,-1000.0,0.00022048,2]
[386638774,1758447060633,-202.92122646,0.00022048,2]
[386638776,1758447060643,-1000.0,0.00022048,2]
[386638778,1758447060653,-1000.0,0.00022048,2]
[386638780,1758447060663,-500.0,0.00022048,2]
[386638782,1758447060673,-1000.0,0.00022048,2]
[386638784,1758447060683,-1001.06831998,0.00022048,2]
[386638786,1758447060693,-1001.98979774,0.00022048,2]
[386638788,1758447060702,-885.97867917,0.00022048,2]
[386638790,1758447060713,-1000.0,0.00022048,2]
[386638792,1758447060724,-1000.0,0.00022048,2]
[386638794,1758447060734,-1000.0,0.00022048,2]
[386638796,1758447060744,-480.0,0.00022064,2]
[386638798,1758447060754,-815.5,0.00022064,2]
[386638800,1758447060765,-11082.74617831,0.00022073,2]
[386638802,1758447060774,-2000.0,0.000221,2]
[386638804,1758447060783,-2000.0,0.000221,2]
[386638806,1758447060793,-2000.0,0.000221,2]
[386638808,1758447060802,-164.6957,0.000221,7]
[386638810,1758447060812,-150.0,0.000221,5]
[386638812,1758447060821,-12366.26028563,0.000221,2]
[386638814,1758447060831,-15364.29,0.00022167,2]
[386638816,1758447060842,-500.0,0.00022173,2]
[386638818,1758447060851,-500.0,0.00022173,2]
[386638820,1758447060861,-501.8487975,0.00022184,2]
[386638822,1758447060870,-480.0,0.00022191,2]
[386638824,1758447060880,-475.85,0.00022191,2]
[386638826,1758447060889,-480.0,0.00022191,2]
[386638828,1758447060898,-574.07176533,0.00022191,2]
[386638830,1758447060907,-480.0,0.00022191,2]
[386638832,1758447060917,-480.0,0.00022191,2]
[386638834,1758447060926,-480.0,0.00022191,2]
[386638836,1758447060936,-1155.69,0.00022191,2]
[386638838,1758447060945,-10857.65,0.00022191,2]
[386638840,1758447060955,-480.0,0.00022191,2]
[386638842,1758447060965,-1690.43,0.00022191,2]
[386638844,1758447060974,-678.23,0.00022191,2]
[386638846,1758447060983,-480.0,0.00022191,2]
[386638848,1758447060992,-1659.82,0.00022191,2]
[386638850,1758447061004,-970.19,0.00022191,2]
[386638852,1758447061014,-557.14,0.00022191,2]
[386638854,1758447061023,-150.48959457,0.00022191,2]
[386638856,1758447061033,-480.0,0.00022191,2]
[386638865,1758447061103,-845.37,0.00022191,2]
[386638867,1758447061114,-847.21,0.00022191,2]
[386638869,1758447061123,-3912.14,0.00022191,2]
[386638871,1758447061133,-480.0,0.00022191,2]
[386638873,1758447061143,-730.9,0.00022191,2]
[386638875,1758447061152,-480.0,0.00022191,2]
[386638877,1758447061161,-675.21,0.00022191,2]
[386638879,1758447061172,-480.0,0.00022191,2]
[386638881,1758447061181,-1536.62,0.00022191,2]
[386638883,1758447061190,-1727.94,0.00022191,2]
[386638885,1758447061200,-480.0,0.00022191,2]
[386638887,1758447061212,-480.0,0.00022191,2]
[386638889,1758447061222,-480.0,0.00022191,2]
[386638891,1758447061231,-850.04,0.00022191,2]
[386638893,1758447061241,-269.07,0.00022191,2]
[386638894,1758447061251,-487.52,0.00022191,2]
[386638897,1758447061261,-2000.0,0.000222,2]
[386638898,1758447061272,-308394.45023225,0.000222,7]
[386638912,1758447061392,-742.44997341,0.000222,7]
[386639029,1758447062512,-124.18644342,0.00019178,2]
[386639083,1758447063018,-256.2,0.00018987,2]
[386639087,1758447063048,-243.8,0.00018987,2]
[386639089,1758447063058,-500.0,0.00018987,2]
[386639091,1758447063070,-500.0,0.00018987,2]
[386639093,1758447063082,-500.0,0.00018987,2]
[386639095,1758447063093,-500.0,0.00018987,2]
[386639097,1758447063103,-500.0,0.00018987,2]
[386639099,1758447063114,-500.0,0.00018987,2]
[386639101,1758447063124,-500.0,0.00018987,2]
[386639103,1758447063135,-500.0,0.00018987,2]
[386639105,1758447063145,-500.0,0.00018987,2]
[386639107,1758447063155,-500.0,0.00018987,2]
[386639109,1758447063165,-500.0,0.00018987,2]
[386639111,1758447063175,-41.47669707,0.00018987,2]
[386639113,1758447063188,-458.52330293,0.00018987,2]
[386639115,1758447063198,-33.54314407,0.00018987,2]
[386639153,1758447063565,-466.45685593,0.00018987,2]
[386639155,1758447063575,-500.0,0.00018987,2]
[386639157,1758447063585,-500.0,0.00018987,2]
[386639159,1758447063595,-500.0,0.00018987,2]
[386639161,1758447063605,-500.0,0.00018987,2]
[386639163,1758447063614,-323.00718382,0.00018987,2]
[386639166,1758447063637,-176.99281618,0.00018987,2]
[386639168,1758447063648,-500.0,0.00018987,2]
[386639170,1758447063657,-500.0,0.00018987,2]
[386639172,1758447063668,-500.0,0.00018987,2]
[386639174,1758447063678,-500.0,0.00018987,2]
[386639176,1758447063689,-500.0,0.00018987,2]
[386639178,1758447063699,-477.52158716,0.00018987,2]
[386639180,1758447063711,-500.0,0.00018987,2]
[386639182,1758447063721,-500.0,0.00018987,2]
[386639184,1758447063731,-500.0,0.00018987,2]
[386639185,1758447063741,-500.0,0.00018987,2]
[386639187,1758447063750,-500.0,0.00018987,2]
[386639189,1758447063760,-500.0,0.00018987,2]
[386639191,1758447063769,-500.0,0.00018987,2]
[386639192,1758447063779,-236.51125941,0.00018987,2]
[386639194,1758447063789,-500.0,0.00018987,2]
[386639196,1758447063798,-500.0,0.00018987,2]
[386639198,1758447063807,-84.57926908,0.00018987,2]
[386639200,1758447063819,-415.42073092,0.00018987,2]
[386639202,1758447063830,-500.0,0.00018987,2]
[386639204,1758447063839,-500.0,0.00018987,2]
[386639206,1758447063849,-500.0,0.00018987,2]
[386639208,1758447063859,-500.0,0.00018987,2]
[386639210,1758447063869,-500.0,0.00018987,2]
[386639212,1758447063879,-500.0,0.00018987,2]
[386639214,1758447063888,-500.0,0.00018987,2]
[386639216,1758447063898,-293.97926709,0.00018987,2]
[386639218,1758447063912,-206.02073291,0.00018987,2]
[386639220,1758447063922,-482.830476,0.00018987,2]
[386639222,1758447063935,-17.169524,0.00018987,2]
[386639224,1758447063946,-500.0,0.00018987,2]
[386639226,1758447063955,-500.0,0.00018987,2]
[386639228,1758447063968,-500.0,0.00018987,2]
[386639230,1758447063978,-500.0,0.00018987,2]
[386639232,1758447063989,-30.18618948,0.00018987,2]
[386639234,1758447064004,-469.81381052,0.00018987,2]
[386639236,1758447064015,-500.0,0.00018987,2]
[386639238,1758447064025,-500.0,0.00018987,2]
[386639240,1758447064034,-500.0,0.00018987,2]
[386639242,1758447064043,-500.0,0.00018987,2]
[386639243,1758447064052,-500.0,0.00018987,2]
[386639245,1758447064062,-500.0,0.00018987,2]
[386639247,1758447064073,-500.0,0.00018987,2]
[386639249,1758447064083,-276.40355939,0.00018987,2]
[386639251,1758447064092,-500.0,0.00018987,2]
[386639253,1758447064102,-500.0,0.00018987,2]
[386639255,1758447064112,-500.0,0.00018987,2]
[386639257,1758447064122,-500.0,0.00018987,2]
[386639259,1758447064132,-500.0,0.00018987,2]
[386639261,1758447064142,-500.0,0.00018987,2]
[386639263,1758447064152,-500.0,0.00018987,2]
[386639272,1758447064240,-500.0,0.00018987,2]
[386639275,1758447064257,-369.88407118,0.00018987,2]
[386639277,1758447064267,-500.0,0.00018987,2]
[386639279,1758447064278,-500.0,0.00018987,2]
[386639281,1758447064288,-500.0,0.00018987,2]
[386639283,1758447064298,-500.0,0.00018987,2]
[386639285,1758447064308,-500.0,0.00018987,2]
[386639287,1758447064317,-500.0,0.00018987,2]
[386639289,1758447064329,-500.0,0.00018987,2]
[386639291,1758447064338,-500.0,0.00018987,2]
[386639292,1758447064348,-500.0,0.00018987,2]
[386639294,1758447064358,-500.0,0.00018987,2]
[386639296,1758447064368,-500.0,0.00018987,2]
[386639298,1758447064378,-500.0,0.00018987,2]
[386639300,1758447064388,-51.81574051,0.00018987,2]
[386639302,1758447064400,-448.18425949,0.00018987,2]
[386639304,1758447064409,-261.44590361,0.00018987,2]
[386639715,1758447127186,-183.82012726,0.00018056,2]
[386639716,1758447130678,-273.06201644,0.00018056,2]
[386639717,1758447135029,-215.08724986,0.00018056,2]
[386639718,1758447139580,-152.0,0.00018056,2]
[386639719,1758447142263,-174.25551148,0.00018056,2]
[386639720,1758447144306,-244.91601342,0.00018056,2]
[386639721,1758447146323,-295.615232,0.00018056,2]
[386639722,1758447148444,-187.64448774,0.00018056,2]
[386639723,1758447150835,-160.0,0.00018056,2]
[386639724,1758447153421,-158.05354746,0.00018056,2]
[386639725,1758447154845,-299.09,0.00018056,2]
[386639726,1758447158614,501.3096257,0.00017941,2]
[386639727,1758447158863,-281.89842794,0.00018056,2]
[386639728,1758447162479,-16.0172584,0.00018056,2]
[386639729,1758447175918,322.6619487,0.00017941,2]
[386639730,1758447220161,343.87359396,0.000179,2]
[386639731,1758447327318,-160.0,0.00018309,2]
[386639732,1758447327346,-1000.0,0.0001831,2]
[386639733,1758447327373,-237.88141787,0.00018603,2]
[386639734,1758447327402,-300.0,0.00018887,2]
[386639735,1758447327430,-300.0,0.00018887,2]
[386639736,1758447327458,-300.0,0.00018887,2]
[386639737,1758447327486,-1200.0,0.00018887,2]
[386639738,1758447327513,-500.0,0.00018888,2]
[386639739,1758447327541,-500.0,0.00018888,2]
[386639740,1758447327570,-500.0,0.00018888,2]
[386639741,1758447327802,-500.0,0.00018888,2]
[386639742,1758447327832,-500.0,0.00018888,2]
[386639743,1758447327863,-500.0,0.00018888,2]
[386639744,1758447327891,-526.27902882,0.00018888,2]
[386639745,1758447327919,-500.0,0.00018888,2]
[386639746,1758447327951,-500.0,0.00018888,2]
[386639747,1758447327981,-500.0,0.00018888,2]
[386639748,1758447328011,-500.0,0.00018888,2]
[386639749,1758447328040,-500.0,0.00018888,2]
[386639750,1758447328069,-447.45194236,0.00018888,2]
[386639751,1758447328123,-52.54805764,0.00018888,2]
[386639752,1758447328156,-500.0,0.00018888,2]
[386639753,1758447328188,-500.0,0.00018888,2]
[386639754,1758447328217,-500.0,0.00018888,2]
[386639755,1758447328248,-500.0,0.00018888,2]
[386639756,1758447328276,-500.0,0.00018888,2]
[386639757,1758447328308,-500.0,0.00018888,2]
[386639758,1758447328338,-500.0,0.00018888,2]
[386639759,1758447328369,-500.0,0.00018888,2]
[386639760,1758447328398,-636.98840712,0.00018888,2]
[386639761,1758447328495,-621.69504577,0.00018888,2]
[386639762,1758447328526,-500.0,0.00018888,2]
[386639763,1758447328554,-500.0,0.00018888,2]
[386639764,1758447328585,-276.63124066,0.00018888,2]
[386639765,1758447328613,-500.0,0.00018888,2]
[386639766,1758447328645,-500.0,0.00018888,2]
[386639767,1758447328676,-500.0,0.00018888,2]
[386639768,1758447328707,-500.0,0.00018888,2]
[386639769,1758447328739,-500.0,0.00018888,2]
[386639770,1758447328771,-500.0,0.00018888,2]
[386639771,1758447329031,-500.0,0.00018888,2]
[386639772,1758447329062,-500.0,0.00018888,2]
[386639773,1758447329092,-499.99999999,0.00018888,2]
[386639774,1758447330214,-2458.41494545,0.0001889,2]
[386639775,1758447330227,-10000.01,0.0001889,2]
[386639776,1758447330245,-6812.67521667,0.0001889,2]
[386639777,1758447330254,-157.26618734,0.000189,2]
[386639778,1758447330263,-157.26618734,0.000189,2]
[386639779,1758447330273,-1200.0,0.00018986,2]
[386639780,1758447330282,-1672.80240865,0.00018987,2]
[386639781,1758447337171,-10000.01,0.00018987,2]
[386639782,1758447337649,-10000.01,0.00018987,2]
[386639783,1758447337782,-10000.01,0.00018987,2]
[386639784,1758447337929,-10000.01,0.00018987,2]
[386639785,1758447338069,-10000.01,0.00018987,2]
[386639786,1758447338206,-10000.01,0.00018987,2]
[386639788,1758447454915,-334.438766,0.00018175,2]
[386639789,1758447457802,-203.781234,0.00018175,2]
[386639790,1758447521302,-190.657059,0.00018173,2]